[Event "55th Biel Festival MTO 2022"]
[Site "Biel"]
[Date "2022.07.15"]
[Round "3.37"]
[White "Kolbus Dietmar"]
[Black "Aydin Gulenay"]
[Result "1/2-1/2"]
[ECO "E83"]
[WhiteElo "2285"]
[BlackElo "2100"]
[Annotator "ChessBase"]
[PlyCount "113"]
[EventDate "2022.07.13"]
[EventType "swiss"]
[EventCountry "SUI"]
[SourceTitle "playchess.com"]
[Source "ChessBase"]
[SourceQuality "1"]
[TimeControl "40/5400+30:1800+30"]

1. c4 {[%emt 0:01:08]} Nf6 {[%emt 0:00:05]} 2. Nc3 {[%emt 0:00:22]} g6 {[%emt 0:00:07]} 3. e4 {[%emt 0:00:19]} d6 {[%emt 0:00:05]} 4. d4 {[%emt 0:00:06]} Bg7 {[%emt 0:00:06]} 5. f3 {[%emt 0:02:25]} O-O {[%emt 0:01:16]} 6. Be3 {[%emt 0:00:05]} Nc6 {[%emt 0:00:21]} 7. Nge2 {[%emt 0:00:25]} a6 {[%emt 0:00:54]} 8. Qd2 {[%emt 0:01:45]} Na5 {[%emt 0:00:56]} 9. Nc1 {[%emt 0:01:39]} Nd7 {[%emt 0:00:56]} 10. b4 {[%emt 0:12:05]} Nc6 {[%emt 0:00:10]} 11. Rb1 {[%emt 0:00:10]} e5 {[%emt 0:00:35]} 12. d5 {[%emt 0:00:16]} Nd4 {[%emt 0:00:08]} 13. Nb3 {[%emt 0:00:29]} f5 {[%emt 0:00:51]} 14. Nxd4 {[%emt 0:04:43]} exd4 {[%emt 0:00:06]} 15. Bxd4 {[%emt 0:00:11]} Bxd4 {[%emt 0:00:17]} 16. Qxd4 {[%emt 0:00:05]} Ne5 {[%emt 0:00:56]} 17. f4 {[%emt 0:17:51]} Qh4+ {[%emt 0:12:38]} 18. Qf2 {[%emt 0:00:10]} Qxf2+ {[%emt 0:00:47]} 19. Kxf2 {[%emt 0:00:04]} fxe4 {[%emt 0:00:31]} 20. Kg3 {[%emt 0:00:25]} Ng4 {[%emt 0:32:34]} 21. Nxe4 {[%emt 0:05:51]} a5 {[%emt 0:01:50]} 22. b5 {[%emt 0:00:37]} Bf5 {[%emt 0:01:49]} 23. Re1 {[%emt 0:08:30]} Bxe4 {[%emt 0:02:16]} 24. Rxe4 {[%emt 0:13:47]} Nf6 {[%emt 0:02:00]} 25. Rd4 {[%emt 0:00:17]} Rae8 {[%emt 0:01:45]} 26. Bd3 {[%emt 0:05:08]} Re3+ {[%emt 0:02:48]} 27. Kh4 {[%emt 0:00:21]} Nd7 {[%emt 0:01:52]} 28. g3 {[%emt 0:00:48]} Nc5 {[%emt 0:02:09]} 29. Rd1 {[%emt 0:00:45]} b6 {[%emt 0:01:37]} 30. Rd2 {[%emt 0:06:40]} Kg7 {[%emt 0:04:04]} 31. Kh3 {[%emt 0:05:41]} Rfe8 {[%emt 0:00:53]} 32. Bc2 {[%emt 0:05:26]} Kf6 {[%emt 0:01:25]} 33. Bd1 {[%emt 0:00:20]} R8e4 {[%emt 0:18:46]} 34. Rxe4 {[%emt 0:02:51]} Nxe4 {[%emt 0:00:07]} 35. Rc2 {[%emt 0:01:38]} Ra3 {[%emt 0:05:00]} 36. Re2 {[%emt 0:01:01]} Nc5 {[%emt 0:01:09]} 37. Rd2 {[%emt 0:03:54]} Nd3 {[%emt 0:02:02]} 38. Kg2 {[%emt 0:00:04]} Nb4 {[%emt 0:00:43]} 39. Bb3 {[%emt 0:00:20]} a4 {[%emt 0:00:15]} 40. Bd1 {[%emt 0:00:27]} Nxa2 {[%emt 0:00:40]} 41. Kf1 {[%emt 0:02:09]} Nc3 {[%emt 0:02:29]} 42. Rd3 {[%emt 0:01:05]} Ra1 {[%emt 0:14:32]} 43. Rxc3 {[%emt 0:00:09]} Rxd1+ {[%emt 0:00:03]} 44. Ke2 {[%emt 0:01:55]} Ra1 {[%emt 0:01:09]} 45. Kf3 {[%emt 0:00:20]} h5 {[%emt 0:05:42]} 46. Ke4 {[%emt 0:04:35]} a3 {[%emt 0:01:11]} 47. Re3 {[%emt 0:00:46]} a2 {[%emt 0:04:55]} 48. Re2 {[%emt 0:00:09]} Rc1 {[%emt 0:00:11]} 49. Rxa2 {[%emt 0:00:14]} Rxc4+ {[%emt 0:00:02]} 50. Ke3 {[%emt 0:02:03]} Rc5 {[%emt 0:00:39]} 51. Ra7 {[%emt 0:04:10]} Rxd5 {[%emt 0:00:44]} 52. Rxc7 {[%emt 0:00:07]} Rxb5 {[%emt 0:00:02]} 53. Rd7 {[%emt 0:01:10]} Ke6 {[%emt 0:00:46]} 54. Rg7 {[%emt 0:00:15]} Kf5 {[%emt 0:00:38]} 55. Rf7+ {[%emt 0:00:17]} Ke6 {[%emt 0:01:19]} 56. Rg7 {[%emt 0:00:06]} Kf6 {[%emt 0:02:10]} 57. Rd7 {[%emt 0:00:02]} 1/2-1/2

[Event "55th Biel Festival MTO 2022"]
[Site "Biel"]
[Date "2022.07.15"]
[Round "3.38"]
[White "Sadeghi, Hassan Roger"]
[Black "Schnepp Gunnar"]
[Result "0-1"]
[ECO "B50"]
[WhiteElo "2068"]
[BlackElo "2265"]
[Annotator "ChessBase"]
[PlyCount "104"]
[EventDate "2022.07.13"]
[EventType "swiss"]
[EventCountry "SUI"]
[SourceTitle "playchess.com"]
[Source "ChessBase"]
[SourceQuality "1"]
[TimeControl "40/5400+30:1800+30"]

1. e4 {[%emt 0:00:07]} c5 {[%emt 0:00:04]} 2. Nf3 {[%emt 0:01:51]} d6 {[%emt 0:00:17]} 3. Be2 {[%emt 0:01:45]} Nf6 {[%emt 0:00:44]} 4. c3 {[%emt 0:00:26]} g6 {[%emt 0:09:54]} 5. O-O {[%emt 0:01:17]} Bg7 {[%emt 0:00:09]} 6. Re1 {[%emt 0:00:18]} O-O {[%emt 0:00:27]} 7. Bf1 {[%emt 0:00:19]} Nc6 {[%emt 0:03:28]} 8. h3 {[%emt 0:00:52]} e5 {[%emt 0:08:50]} 9. d4 {[%emt 0:02:13]} exd4 {[%emt 0:08:52]} 10. cxd4 {[%emt 0:04:30]} cxd4 {[%emt 0:00:35]} 11. Nxd4 {[%emt 0:00:09]} Nxd4 {[%emt 0:05:56]} 12. Qxd4 {[%emt 0:00:12]} Re8 {[%emt 0:00:30]} 13. Bg5 {[%emt 0:04:16]} h6 {[%emt 0:07:31]} 14. Bxf6 {[%emt 0:00:25]} Bxf6 {[%emt 0:00:31]} 15. Qd2 {[%emt 0:00:14]} d5 {[%emt 0:02:50]} 16. Nc3 {[%emt 0:07:44]} dxe4 {[%emt 0:01:30]} 17. Qc2 {[%emt 0:15:45]} e3 {[%emt 0:13:06]} 18. Rad1 {[%emt 0:05:12]} Bf5 {[%emt 0:01:31]} 19. Rxd8 {[%emt 0:03:52]} Bxc2 {[%emt 0:03:40]} 20. Rxe8+ {[%emt 0:01:47]} Rxe8 {[%emt 0:00:01]} 21. Rxe3 {[%emt 0:00:07]} Rxe3 {[%emt 0:05:41]} 22. fxe3 {[%emt 0:01:01]} a6 {[%emt 0:01:48]} 23. Kf2 {[%emt 0:00:21]} b5 {[%emt 0:10:23]} 24. a3 {[%emt 0:00:40]} h5 {[%emt 0:02:29]} 25. g4 {[%emt 0:01:25]} hxg4 {[%emt 0:01:32]} 26. hxg4 {[%emt 0:00:32]} Kg7 {[%emt 0:02:12]} 27. Bg2 {[%emt 0:01:40]} Kh6 {[%emt 0:02:02]} 28. Bd5 {[%emt 0:00:28]} Kg5 {[%emt 0:03:57]} 29. Kf3 {[%emt 0:06:19]} Bxc3 {[%emt 0:01:22]} 30. bxc3 {[%emt 0:00:07]} Bd1+ {[%emt 0:00:09]} 31. Kg3 {[%emt 0:00:49]} f6 {[%emt 0:00:41]} 32. Be4 {[%emt 0:01:24]} Be2 {[%emt 0:00:30]} 33. Bb7 {[%emt 0:03:15]} a5 {[%emt 0:00:11]} 34. Ba6 {[%emt 0:00:43]} a4 {[%emt 0:00:17]} 35. Bc8 {[%emt 0:00:18]} Bd3 {[%emt 0:01:16]} 36. Bd7 {[%emt 0:00:12]} Be2 {[%emt 0:01:28]} 37. Bc8 {[%emt 0:00:07]} Bd3 {[%emt 0:00:59]} 38. Bd7 {[%emt 0:00:06]} Bc4 {[%emt 0:01:20]} 39. Bc8 {[%emt 0:00:11]} Be2 {[%emt 0:00:27]} 40. Bd7 {[%emt 0:02:28]} Bd3 {[%emt 0:00:06]} 41. Bc8 {[%emt 0:30:29]} f5 {[%emt 0:31:06]} 42. Bd7 {[%emt 0:12:02]} fxg4 {[%emt 0:00:00]} 43. Bxg4 {[%emt 0:00:00]} Kf6 {[%emt 0:00:00]} 44. Kf2 {[%emt 0:00:00]} Ke5 {[%emt 0:00:00]} 45. Bf3 {[%emt 0:00:00]} Kd6 {[%emt 0:00:00]} 46. Ke1 {[%emt 0:00:00]} Kc5 {[%emt 0:00:00]} 47. Kd2 {[%emt 0:00:00]} Bf5 {[%emt 0:00:00]} 48. e4 {[%emt 0:00:00]} Be6 {[%emt 0:00:00]} 49. Ke3 {[%emt 0:00:00]} Kc4 {[%emt 0:00:00]} 50. Be2+ {[%emt 0:00:00]} Kb3 {[%emt 0:00:00]} 51. Bxb5 {[%emt 0:00:00]} Kxa3 {[%emt 0:00:00]} 52. Kf4 {[%emt 0:00:07]} Kb3 {[%emt 0:00:00]} 0-1

[Event "55th Biel Festival MTO 2022"]
[Site "Biel"]
[Date "2022.07.16"]
[Round "4.1"]
[White "Puranik Abhimanyu"]
[Black "Visakh N R"]
[Result "0-1"]
[ECO "D02"]
[WhiteElo "2612"]
[BlackElo "2503"]
[Annotator "ChessBase"]
[PlyCount "78"]
[EventDate "2022.07.13"]
[EventType "swiss"]
[EventCountry "SUI"]
[SourceTitle "playchess.com"]
[Source "ChessBase"]
[SourceQuality "1"]
[TimeControl "40/5400+30:1800+30"]

1. d4 {[%emt 0:02:29]} Nf6 {[%emt 0:00:42]} 2. Nf3 {[%emt 0:00:32]} e6 {[%emt 0:00:36]} 3. Bf4 {[%emt 0:00:27]} d5 {[%emt 0:00:25]} 4. e3 {[%emt 0:00:32]} Bd6 {[%emt 0:00:45]} 5. Nbd2 {[%emt 0:00:09]} O-O {[%emt 0:00:48]} 6. Bd3 {[%emt 0:01:04]} b6 {[%emt 0:00:44]} 7. Qe2 {[%emt 0:00:59]} Bb7 {[%emt 0:01:19]} 8. Bg5 {[%emt 0:07:11]} Be7 {[%emt 0:00:50]} 9. Ne5 {[%emt 0:12:15]} Ne4 {[%emt 0:09:25]} 10. Bxe7 {[%emt 0:01:59]} Qxe7 {[%emt 0:00:03]} 11. h4 {[%emt 0:14:01]} f6 {[%emt 0:13:59]} 12. Ng4 {[%emt 0:00:21]} Nd7 {[%emt 0:01:25]} 13. Nxe4 {[%emt 0:10:24]} dxe4 {[%emt 0:00:23]} 14. Bc4 {[%emt 0:00:43]} f5 {[%emt 0:05:47]} 15. Nh2 {[%emt 0:02:28]} Bd5 {[%emt 0:05:46]} 16. O-O-O {[%emt 0:06:02]} c6 {[%emt 0:05:15]} 17. g4 {[%emt 0:03:49]} f4 {[%emt 0:02:03]} 18. g5 {[%emt 0:01:14]} f3 {[%emt 0:07:57]} 19. Qf1 {[%emt 0:00:02]} b5 {[%emt 0:00:17]} 20. Bxd5 {[%emt 0:00:04]} cxd5 {[%emt 0:00:05]} 21. Ng4 {[%emt 0:00:04]} Nb6 {[%emt 0:13:54]} 22. Qxb5 {[%emt 0:03:47]} Nc4 {[%emt 0:01:16]} 23. Qa4 {[%emt 0:01:05]} Rfc8 {[%emt 0:03:10]} 24. b3 {[%emt 0:03:49]} Rab8 {[%emt 0:10:51]} 25. h5 {[%emt 0:05:31]} Nd6 {[%emt 0:04:51]} 26. Kd2 {[%emt 0:05:36]} Qc7 {[%emt 0:03:43]} 27. Rc1 {[%emt 0:01:52]} Qc3+ {[%emt 0:00:16]} 28. Kd1 {[%emt 0:00:31]} Nb5 {[%emt 0:00:06]} 29. h6 {[%emt 0:04:53]} g6 {[%emt 0:03:12]} 30. Ne5 {[%emt 0:00:02]} Rb7 {[%emt 0:00:27]} 31. Rh4 {[%emt 0:05:45]} a5 {[%emt 0:02:16]} 32. Rf4 {[%emt 0:02:44]} Qb2 {[%emt 0:00:48]} 33. Qxb5 {[%emt 0:00:15]} Rxb5 {[%emt 0:00:24]} 34. Rf7 {[%emt 0:00:02]} Rf8 {[%emt 0:00:54]} 35. Rg7+ {[%emt 0:00:27]} Kh8 {[%emt 0:00:03]} 36. Nf7+ {[%emt 0:02:35]} Rxf7 {[%emt 0:00:01]} 37. Rxf7 {[%emt 0:00:01]} Rb8 {[%emt 0:00:11]} 38. Re7 {[%emt 0:01:06]} Rc8 {[%emt 0:00:50]} 39. a4 {[%emt 0:00:26]} Kg8 {[%emt 0:00:22]} 0-1

[Event "55th Biel Festival MTO 2022"]
[Site "Biel"]
[Date "2022.07.16"]
[Round "4.2"]
[White "Pranav Anand"]
[Black "Aryan Chopra"]
[Result "1/2-1/2"]
[ECO "A62"]
[WhiteElo "2463"]
[BlackElo "2610"]
[Annotator "ChessBase"]
[PlyCount "69"]
[EventDate "2022.07.13"]
[EventType "swiss"]
[EventCountry "SUI"]
[SourceTitle "playchess.com"]
[Source "ChessBase"]
[SourceQuality "1"]
[TimeControl "40/5400+30:1800+30"]

1. d4 {[%emt 0:00:04]} Nf6 {[%emt 0:00:04]} 2. c4 {[%emt 0:00:06]} e6 {[%emt 0:00:04]} 3. g3 {[%emt 0:03:27]} c5 {[%emt 0:00:17]} 4. d5 {[%emt 0:00:41]} exd5 {[%emt 0:00:07]} 5. cxd5 {[%emt 0:00:04]} d6 {[%emt 0:00:05]} 6. Nc3 {[%emt 0:00:11]} g6 {[%emt 0:00:08]} 7. Bg2 {[%emt 0:00:04]} Bg7 {[%emt 0:00:04]} 8. Nf3 {[%emt 0:01:37]} O-O {[%emt 0:00:07]} 9. O-O {[%emt 0:00:05]} Re8 {[%emt 0:00:07]} 10. Bf4 {[%emt 0:00:59]} Bf5 {[%emt 0:00:17]} 11. Nh4 {[%emt 0:06:25]} Bc8 {[%emt 0:00:14]} 12. Qd2 {[%emt 0:05:10]} Bf8 {[%emt 0:00:18]} 13. Rfe1 {[%emt 0:10:10]} a6 {[%emt 0:00:21]} 14. a4 {[%emt 0:10:16]} Nbd7 {[%emt 0:00:16]} 15. e4 {[%emt 0:01:59]} Rb8 {[%emt 0:03:10]} 16. Rab1 {[%emt 0:02:52]} Qa5 {[%emt 0:08:56]} 17. Nf3 {[%emt 0:06:41]} Ng4 {[%emt 0:01:37]} 18. Qc2 {[%emt 0:02:18]} b5 {[%emt 0:15:56]} 19. axb5 {[%emt 0:03:08]} axb5 {[%emt 0:00:06]} 20. h3 {[%emt 0:00:31]} Nge5 {[%emt 0:00:36]} 21. Nxe5 {[%emt 0:02:19]} Nxe5 {[%emt 0:01:06]} 22. b4 {[%emt 0:01:53]} cxb4 {[%emt 0:01:57]} 23. Na2 {[%emt 0:02:26]} Bd7 {[%emt 0:06:56]} 24. Nxb4 {[%emt 0:00:38]} Rec8 {[%emt 0:00:06]} 25. Qb3 {[%emt 0:01:00]} Qa4 {[%emt 0:03:44]} 26. Bf1 {[%emt 0:02:41]} Bg7 {[%emt 0:04:59]} 27. Kg2 {[%emt 0:03:45]} f5 {[%emt 0:02:52]} 28. Bxe5 {[%emt 0:03:20]} Bxe5 {[%emt 0:03:39]} 29. Nc6 {[%emt 0:00:22]} Qxb3 {[%emt 0:01:37]} 30. Rxb3 {[%emt 0:00:06]} Bxc6 {[%emt 0:00:46]} 31. dxc6 {[%emt 0:00:05]} Rxc6 {[%emt 0:00:08]} 32. Bxb5 {[%emt 0:01:39]} Kg7 {[%emt 0:00:28]} 33. Bxc6 {[%emt 0:03:46]} Rxb3 {[%emt 0:00:05]} 34. exf5 {[%emt 0:02:26]} gxf5 {[%emt 0:00:06]} 35. Re3 {[%emt 0:01:06]} 1/2-1/2

[Event "55th Biel Festival MTO 2022"]
[Site "Biel"]
[Date "2022.07.16"]
[Round "4.3"]
[White "Yu Yangyi"]
[Black "Azarov Sergei"]
[Result "1/2-1/2"]
[ECO "E48"]
[WhiteElo "2720"]
[BlackElo "2566"]
[Annotator "ChessBase"]
[PlyCount "155"]
[EventDate "2022.07.13"]
[EventType "swiss"]
[EventCountry "SUI"]
[SourceTitle "playchess.com"]
[Source "ChessBase"]
[SourceQuality "1"]
[TimeControl "40/5400+30:1800+30"]

1. c4 {[%emt 0:00:05]} Nf6 {[%emt 0:00:24]} 2. Nc3 {[%emt 0:01:02]} e6 {[%emt 0:02:44]} 3. d4 {[%emt 0:03:12]} Bb4 {[%emt 0:00:21]} 4. e3 {[%emt 0:00:37]} O-O {[%emt 0:00:25]} 5. Bd3 {[%emt 0:00:22]} d5 {[%emt 0:00:39]} 6. cxd5 {[%emt 0:00:14]} exd5 {[%emt 0:00:26]} 7. Nge2 {[%emt 0:00:08]} Re8 {[%emt 0:01:10]} 8. O-O {[%emt 0:00:17]} Bf8 {[%emt 0:01:06]} 9. a3 {[%emt 0:03:42]} a5 {[%emt 0:04:53]} 10. Nf4 {[%emt 0:08:09]} c6 {[%emt 0:06:07]} 11. Bd2 {[%emt 0:01:56]} Na6 {[%emt 0:09:54]} 12. Qc2 {[%emt 0:00:08]} g6 {[%emt 0:03:07]} 13. Rad1 {[%emt 0:03:16]} Nc7 {[%emt 0:02:09]} 14. f3 {[%emt 0:08:43]} Ne6 {[%emt 0:05:29]} 15. Nxe6 {[%emt 0:01:12]} Bxe6 {[%emt 0:00:35]} 16. Be1 {[%emt 0:00:15]} Bg7 {[%emt 0:07:39]} 17. Bh4 {[%emt 0:00:49]} Qd6 {[%emt 0:03:07]} 18. Bg3 {[%emt 0:04:16]} Qe7 {[%emt 0:00:36]} 19. Be5 {[%emt 0:00:14]} Bh6 {[%emt 0:03:28]} 20. Rfe1 {[%emt 0:01:11]} Nd7 {[%emt 0:00:52]} 21. Bg3 {[%emt 0:01:26]} Bg7 {[%emt 0:04:45]} 22. Kh1 {[%emt 0:02:20]} Rac8 {[%emt 0:15:08]} 23. Qf2 {[%emt 0:02:11]} Nf6 {[%emt 0:07:32]} 24. h3 {[%emt 0:08:38]} Rcd8 {[%emt 0:01:18]} 25. Bh2 {[%emt 0:04:14]} b5 {[%emt 0:01:59]} 26. Be5 {[%emt 0:04:38]} Nd7 {[%emt 0:06:18]} 27. Bxg7 {[%emt 0:03:56]} Kxg7 {[%emt 0:00:02]} 28. Ne2 {[%emt 0:02:56]} Nb6 {[%emt 0:01:53]} 29. Nf4 {[%emt 0:01:09]} Qf6 {[%emt 0:02:37]} 30. Qg3 {[%emt 0:02:31]} Kh8 {[%emt 0:00:35]} 31. Qf2 {[%emt 0:08:45]} Bd7 {[%emt 0:00:36]} 32. Qd2 {[%emt 0:02:17]} a4 {[%emt 0:00:52]} 33. Kg1 {[%emt 0:02:08]} Nc8 {[%emt 0:02:32]} 34. Bf1 {[%emt 0:02:04]} Nd6 {[%emt 0:00:17]} 35. Nd3 {[%emt 0:00:32]} Re7 {[%emt 0:02:05]} 36. Nc5 {[%emt 0:00:11]} Bf5 {[%emt 0:00:21]} 37. Qf2 {[%emt 0:02:58]} Rde8 {[%emt 0:01:04]} 38. Rd2 {[%emt 0:03:05]} Kg7 {[%emt 0:01:04]} 39. Rde2 {[%emt 0:01:22]} Bc8 {[%emt 0:01:04]} 40. e4 {[%emt 0:01:16]} dxe4 {[%emt 0:00:26]} 41. fxe4 {[%emt 0:30:15]} Qxf2+ {[%emt 0:30:12]} 42. Kxf2 {[%emt 0:03:17]} Nb7 {[%emt 0:02:27]} 43. Nxb7 {[%emt 0:07:40]} Rxb7 {[%emt 0:00:00]} 44. Rc2 {[%emt 0:00:00]} Bd7 {[%emt 0:00:00]} 45. Re3 {[%emt 0:00:00]} h5 {[%emt 0:00:00]} 46. h4 {[%emt 0:00:00]} Rd8 {[%emt 0:00:00]} 47. Rec3 {[%emt 0:00:00]} Be8 {[%emt 0:00:00]} 48. Ke3 {[%emt 0:00:00]} b4 {[%emt 0:00:00]} 49. Rc4 {[%emt 0:00:00]} bxa3 {[%emt 0:00:00]} 50. bxa3 {[%emt 0:00:00]} Rb1 {[%emt 0:00:00]} 51. Be2 {[%emt 0:00:00]} Rh1 {[%emt 0:00:00]} 52. g3 {[%emt 0:00:00]} Rg1 {[%emt 0:00:00]} 53. Kf4 {[%emt 0:00:00]} Ra1 {[%emt 0:00:00]} 54. R2c3 {[%emt 0:00:00]} Rb8 {[%emt 0:00:00]} 55. Bd3 {[%emt 0:00:00]} Rb2 {[%emt 0:02:13]} 56. Ke5 {[%emt 0:00:00]} Rb3 {[%emt 0:01:22]} 57. Bc2 {[%emt 0:00:00]} Rbxa3 {[%emt 0:00:09]} 58. Rxa3 {[%emt 0:00:31]} Rxa3 {[%emt 0:00:04]} 59. Bxa4 {[%emt 0:00:47]} Rxg3 {[%emt 0:00:34]} 60. Bxc6 {[%emt 0:01:54]} Bxc6 {[%emt 0:00:32]} 61. Rxc6 {[%emt 0:00:04]} g5 {[%emt 0:00:35]} 62. hxg5 {[%emt 0:00:27]} Rxg5+ {[%emt 0:00:09]} 63. Kf4 {[%emt 0:00:02]} Rg4+ {[%emt 0:01:42]} 64. Kf5 {[%emt 0:00:06]} Rg3 {[%emt 0:00:16]} 65. d5 {[%emt 0:02:04]} h4 {[%emt 0:00:30]} 66. Rc1 {[%emt 0:02:02]} h3 {[%emt 0:00:38]} 67. d6 {[%emt 0:02:26]} h2 {[%emt 0:00:43]} 68. Rh1 {[%emt 0:00:08]} Rd3 {[%emt 0:00:41]} 69. e5 {[%emt 0:00:44]} Rd2 {[%emt 0:00:08]} 70. Kf4 {[%emt 0:00:40]} f6 {[%emt 0:02:37]} 71. Kf5 {[%emt 0:03:15]} Rd5 {[%emt 0:00:54]} 72. Ke6 {[%emt 0:00:16]} Rxe5+ {[%emt 0:00:05]} 73. Kd7 {[%emt 0:00:01]} Re2 {[%emt 0:00:25]} 74. Kd8 {[%emt 0:00:06]} Kf7 {[%emt 0:01:22]} 75. d7 {[%emt 0:00:04]} Rc2 {[%emt 0:01:05]} 76. Rf1 {[%emt 0:00:19]} Rc3 {[%emt 0:00:38]} 77. Rh1 {[%emt 0:00:19]} Rc2 {[%emt 0:00:10]} 78. Rf1 {[%emt 0:00:08]} 1/2-1/2

[Event "55th Biel Festival MTO 2022"]
[Site "Biel"]
[Date "2022.07.16"]
[Round "4.4"]
[White "Sargsyan Shant"]
[Black "Gagare Shardul"]
[Result "1-0"]
[ECO "C10"]
[WhiteElo "2661"]
[BlackElo "2514"]
[Annotator "ChessBase"]
[PlyCount "95"]
[EventDate "2022.07.13"]
[EventType "swiss"]
[EventCountry "SUI"]
[SourceTitle "playchess.com"]
[Source "ChessBase"]
[SourceQuality "1"]
[TimeControl "40/5400+30:1800+30"]

1. e4 {[%emt 0:00:03]} e6 {[%emt 0:09:09]} 2. d4 {[%emt 0:01:38]} d5 {[%emt 0:00:12]} 3. Nc3 {[%emt 0:00:19]} Nf6 {[%emt 0:00:19]} 4. Bg5 {[%emt 0:00:53]} dxe4 {[%emt 0:00:26]} 5. Nxe4 {[%emt 0:00:16]} Nbd7 {[%emt 0:00:23]} 6. Nf3 {[%emt 0:01:18]} h6 {[%emt 0:00:28]} 7. Nxf6+ {[%emt 0:01:25]} Nxf6 {[%emt 0:00:10]} 8. Be3 {[%emt 0:01:26]} Nd5 {[%emt 0:02:54]} 9. Bd2 {[%emt 0:00:40]} c5 {[%emt 0:01:45]} 10. Bb5+ {[%emt 0:00:16]} Bd7 {[%emt 0:00:10]} 11. Bxd7+ {[%emt 0:00:07]} Qxd7 {[%emt 0:00:05]} 12. c4 {[%emt 0:00:07]} Nb6 {[%emt 0:02:07]} 13. Rc1 {[%emt 0:00:11]} Be7 {[%emt 0:12:46]} 14. dxc5 {[%emt 0:00:20]} Bxc5 {[%emt 0:00:26]} 15. b4 {[%emt 0:00:08]} Be7 {[%emt 0:00:09]} 16. c5 {[%emt 0:00:23]} Nd5 {[%emt 0:00:06]} 17. Ne5 {[%emt 0:00:21]} Qc7 {[%emt 0:00:11]} 18. Qa4+ {[%emt 0:00:09]} Kf8 {[%emt 0:00:05]} 19. Nf3 {[%emt 0:02:28]} g6 {[%emt 0:13:08]} 20. O-O {[%emt 0:02:27]} Kg7 {[%emt 0:03:08]} 21. Qb3 {[%emt 0:07:44]} Rhd8 {[%emt 0:11:33]} 22. Rfe1 {[%emt 0:02:34]} Bf6 {[%emt 0:01:57]} 23. g3 {[%emt 0:07:34]} b5 {[%emt 0:05:55]} 24. h4 {[%emt 0:02:58]} e5 {[%emt 0:06:24]} 25. Re4 {[%emt 0:05:06]} Ne7 {[%emt 0:10:55]} 26. Nxe5 {[%emt 0:06:26]} Bxe5 {[%emt 0:00:46]} 27. Rxe5 {[%emt 0:00:19]} Rxd2 {[%emt 0:03:59]} 28. Rxe7 {[%emt 0:00:11]} Qxe7 {[%emt 0:01:11]} 29. Qc3+ {[%emt 0:00:05]} Qf6 {[%emt 0:01:08]} 30. Qxd2 {[%emt 0:00:05]} Rd8 {[%emt 0:00:04]} 31. Qe2 {[%emt 0:07:33]} a6 {[%emt 0:00:44]} 32. c6 {[%emt 0:06:06]} Rc8 {[%emt 0:00:13]} 33. c7 {[%emt 0:00:20]} Qd6 {[%emt 0:01:02]} 34. Qb2+ {[%emt 0:00:09]} Kg8 {[%emt 0:01:01]} 35. Qc3 {[%emt 0:00:09]} h5 {[%emt 0:00:06]} 36. a3 {[%emt 0:01:54]} Qd5 {[%emt 0:06:46]} 37. Qf6 {[%emt 0:02:36]} Qd7 {[%emt 0:02:20]} 38. Qb6 {[%emt 0:01:42]} Kg7 {[%emt 0:00:36]} 39. Kh2 {[%emt 0:02:09]} Qd2 {[%emt 0:02:28]} 40. Rc6 {[%emt 0:01:26]} Qb2 {[%emt 0:02:23]} 41. Qe3 {[%emt 0:32:44]} Kh7 {[%emt 0:04:38]} 42. Kg2 {[%emt 0:00:00]} Qa2 {[%emt 0:08:30]} 43. Qd3 {[%emt 0:00:00]} Kh6 {[%emt 0:06:19]} 44. Qd7 {[%emt 0:00:00]} Kg7 {[%emt 0:01:01]} 45. Qxc8 {[%emt 0:00:00]} Qd5+ {[%emt 0:00:05]} 46. Kh2 {[%emt 0:00:00]} Qxc6 {[%emt 0:00:18]} 47. Qd8 {[%emt 0:00:00]} Qb6 {[%emt 0:00:35]} 48. Kg1 {[%emt 0:00:00]} 1-0